[Event "LAT-chT Higher League 2019"]
[Site "Riga"]
[Date "2019.10.12"]
[Round "8.2"]
[White "Kanep, Meelis"]
[Black "Laurusas, Tomas"]
[Result "1/2-1/2"]
[ECO "A12"]
[WhiteElo "2448"]
[BlackElo "2501"]
[Annotator "ChessBase"]
[PlyCount "38"]
[EventDate "2019.02.15"]
[EventType "team-tourn"]
[EventCountry "LAT"]
[SourceTitle "playchess.com"]
[Source "ChessBase"]
[SourceQuality "1"]
[TimeControl "40/5400+30:1800+30"]

1. Nf3 {[%emt 0:02:23]} Nf6 {[%emt 0:00:03]} 2. g3 {[%emt 0:00:24]} d5 {[%emt 0:01:12]} 3. Bg2 {[%emt 0:01:11]} c6 {[%emt 0:00:49]} 4. O-O {[%emt 0:00:40]} Bg4 {[%emt 0:02:08]} 5. b3 {[%emt 0:02:34]} Nbd7 {[%emt 0:00:56]} 6. Bb2 {[%emt 0:00:54]} e6 {[%emt 0:01:16]} 7. c4 {[%emt 0:04:00]} Be7 {[%emt 0:01:09]} 8. d3 {[%emt 0:01:34]} O-O {[%emt 0:03:50]} 9. Nbd2 {[%emt 0:05:03]} a5 {[%emt 0:07:54]} 10. a3 {[%emt 0:02:04]} Bh5 {[%emt 0:05:17]} 11. h3 {[%emt 0:08:35]} h6 {[%emt 0:02:16]} 12. Qc2 {[%emt 0:16:44]} Bg6 {[%emt 0:01:26]} 13. Rfd1 {[%emt 0:06:05]} Qb6 {[%emt 0:00:38]} 14. cxd5 {[%emt 0:05:54]} cxd5 {[%emt 0:04:12]} 15. Bd4 {[%emt 0:04:30]} Bc5 {[%emt 0:00:25]} 16. Bxc5 {[%emt 0:00:48]} Nxc5 {[%emt 0:00:57]} 17. Rdc1 {[%emt 0:05:17]} Rac8 {[%emt 0:09:28]} 18. Qa2 {[%emt 0:00:41]} Rc7 {[%emt 0:06:07]} 19. b4 {[%emt 0:03:12]} axb4 {[%emt 0:00:16]} 1/2-1/2

[Event "LAT-chT Higher League 2019"]
[Site "Riga"]
[Date "2019.10.12"]
[Round "8.3"]
[White "Sveshnikov, Vladimir"]
[Black "Lanka, Zigurds"]
[Result "1-0"]
[ECO "B22"]
[WhiteElo "2419"]
[BlackElo "2386"]
[Annotator "NA"]
[PlyCount "93"]
[EventDate "2019.02.15"]
[EventType "team-tourn"]
[EventCountry "LAT"]
[SourceTitle "playchess.com"]
[Source "ChessBase"]
[SourceQuality "1"]
[TimeControl "40/5400+30:1800+30"]

1. e4 {[%emt 0:00:00]} c5 {[%emt 0:01:23]} 2. c3 {[%emt 0:00:00]} Nf6 {[%emt 0:00:16]} 3. e5 {[%emt 0:00:00]} Nd5 {[%emt 0:00:09]} 4. d4 {[%emt 0:00:00]} cxd4 {[%emt 0:00:07]} 5. Nf3 {[%emt 0:00:00]} Nc6 {[%emt 0:00:07]} 6. Bc4 {[%emt 0:00:02]} Nb6 {[%emt 0:00:21]} 7. Bb3 {[%emt 0:00:02]} d6 {[%emt 0:00:09]} 8. exd6 {[%emt 0:00:08]} Qxd6 {[%emt 0:00:07]} 9. Na3 {[%emt 0:00:54]} a6 {[%emt 0:02:03]} 10. O-O {[%emt 0:00:08]} e6 {[%emt 0:00:27]} 11. Qe2 {[%emt 0:12:16]} Be7 {[%emt 0:00:31]} 12. Rd1 {[%emt 0:01:12]} O-O {[%emt 0:01:22]} 13. Nc2 {[%emt 0:15:10]} Qc7 {[%emt 0:06:22]} 14. Ncxd4 {[%emt 0:08:30]} Nxd4 {[%emt 0:00:18]} 15. Rxd4 {[%emt 0:01:14]} Bd7 {[%emt 0:02:37]} 16. Bf4 {[%emt 0:00:36]} Qc8 {[%emt 0:01:52]} 17. Rad1 {[%emt 0:05:24]} Bb5 {[%emt 0:01:25]} 18. c4 {[%emt 0:02:06]} Bc6 {[%emt 0:02:39]} 19. Ne5 {[%emt 0:03:04]} Bc5 {[%emt 0:02:21]} 20. R4d3 {[%emt 0:08:26]} f5 {[%emt 0:15:37]} 21. Nxc6 {[%emt 0:03:36]} Qxc6 {[%emt 0:00:30]} 22. Bd6 {[%emt 0:04:07]} Rfe8 {[%emt 0:04:48]} 23. Bxc5 {[%emt 0:04:02]} Qxc5 {[%emt 0:00:11]} 24. Rd6 {[%emt 0:00:03]} Kf7 {[%emt 0:01:01]} 25. Qe3 {[%emt 0:12:52]} Qxe3 {[%emt 0:01:16]} 26. fxe3 {[%emt 0:00:03]} Nc8 {[%emt 0:00:44]} 27. Rd7+ {[%emt 0:00:01]} Re7 {[%emt 0:00:37]} 28. c5 {[%emt 0:00:29]} Rb8 {[%emt 0:04:56]} 29. Rd8 {[%emt 0:04:56]} Rc7 {[%emt 0:09:00]} 30. Rh8 {[%emt 0:05:59]} Rxc5 {[%emt 0:00:49]} 31. Rd7+ {[%emt 0:01:08]} Kf6 {[%emt 0:00:30]} 32. Rf8+ {[%emt 0:00:10]} Ke5 {[%emt 0:00:20]} 33. Rxg7 {[%emt 0:00:13]} b5 {[%emt 0:00:51]} 34. Rxh7 {[%emt 0:03:47]} Rb6 {[%emt 0:01:49]} 35. Re8 {[%emt 0:02:31]} Ke4 {[%emt 0:04:04]} 36. Kf2 {[%emt 0:00:49]} Rcc6 {[%emt 0:05:16]} 37. Rd7 {[%emt 0:01:27]} a5 {[%emt 0:01:48]} 38. h4 {[%emt 0:00:57]} a4 {[%emt 0:00:44]} 39. Bd5+ {[%emt 0:00:19]} Ke5 {[%emt 0:00:09]} 40. Bxc6 {[%emt 0:00:32]} Rxc6 {[%emt 0:00:06]} 41. h5 {[%emt 0:30:24]} Nd6 {[%emt 0:30:03]} 42. h6 {[%emt 0:01:28]} Ne4+ {[%emt 0:03:06]} 43. Ke2 {[%emt 0:00:58]} Rc2+ {[%emt 0:01:57]} 44. Kd1 {[%emt 0:01:57]} Rxg2 {[%emt 0:00:24]} 45. h7 {[%emt 0:00:00]} Rg1+ {[%emt 0:00:17]} 46. Ke2 {[%emt 0:00:00]} Rg2+ {[%emt 0:00:20]} 47. Kf1 {[%emt 0:00:00]} 1-0

[Event "LAT-chT Higher League 2019"]
[Site "Riga"]
[Date "2019.10.12"]
[Round "8.5"]
[White "Chernyak, Viktoria"]
[Black "Krumina, Linda"]
[Result "1-0"]
[ECO "A34"]
[WhiteElo "2284"]
[BlackElo "2070"]
[Annotator "NA"]
[PlyCount "123"]
[EventDate "2019.02.15"]
[EventType "team-tourn"]
[EventCountry "LAT"]
[SourceTitle "playchess.com"]
[Source "ChessBase"]
[SourceQuality "1"]
[TimeControl "40/5400+30:1800+30"]

1. c4 {[%emt 0:00:00]} g6 {[%emt 0:01:19]} 2. Nf3 {[%emt 0:03:01]} Bg7 {[%emt 0:00:20]} 3. Nc3 {[%emt 0:00:05]} c5 {[%emt 0:00:48]} 4. e3 {[%emt 0:00:38]} d6 {[%emt 0:06:29]} 5. Be2 {[%emt 0:04:46]} Nh6 {[%emt 0:04:56]} 6. O-O {[%emt 0:03:18]} O-O {[%emt 0:00:18]} 7. d4 {[%emt 0:00:28]} Nc6 {[%emt 0:05:00]} 8. d5 {[%emt 0:04:13]} Ne5 {[%emt 0:04:09]} 9. Ne1 {[%emt 0:02:47]} f5 {[%emt 0:02:55]} 10. f4 {[%emt 0:00:36]} Neg4 {[%emt 0:02:44]} 11. Nf3 {[%emt 0:03:01]} Nf7 {[%emt 0:03:28]} 12. Bd2 {[%emt 0:05:41]} e5 {[%emt 0:13:12]} 13. dxe6 {[%emt 0:10:55]} Bxe6 {[%emt 0:00:07]} 14. Qc2 {[%emt 0:08:18]} Re8 {[%emt 0:02:43]} 15. Rad1 {[%emt 0:04:31]} Bd7 {[%emt 0:05:13]} 16. Qc1 {[%emt 0:09:01]} Bc6 {[%emt 0:04:26]} 17. h3 {[%emt 0:01:59]} Nf6 {[%emt 0:03:34]} 18. Be1 {[%emt 0:00:24]} Qe7 {[%emt 0:03:29]} 19. Bf2 {[%emt 0:00:30]} Ne4 {[%emt 0:06:52]} 20. Nxe4 {[%emt 0:02:22]} Bxe4 {[%emt 0:01:15]} 21. Kh2 {[%emt 0:07:18]} h6 {[%emt 0:09:17]} 22. Nd2 {[%emt 0:00:41]} Bc6 {[%emt 0:00:23]} 23. Nb1 {[%emt 0:01:02]} Qf6 {[%emt 0:08:31]} 24. Nc3 {[%emt 0:00:15]} Rad8 {[%emt 0:00:57]} 25. Bg1 {[%emt 0:02:37]} g5 {[%emt 0:01:33]} 26. Bf3 {[%emt 0:04:26]} g4 {[%emt 0:01:06]} 27. Bd5 {[%emt 0:00:27]} h5 {[%emt 0:02:51]} 28. Bf2 {[%emt 0:01:15]} h4 {[%emt 0:01:40]} 29. Be1 {[%emt 0:00:32]} g3+ {[%emt 0:01:01]} 30. Kg1 {[%emt 0:00:47]} Re7 {[%emt 0:00:30]} 31. Rf3 {[%emt 0:00:36]} Rde8 {[%emt 0:00:23]} 32. Bd2 {[%emt 0:04:40]} Kh8 {[%emt 0:00:31]} 33. Qc2 {[%emt 0:00:26]} Nh6 {[%emt 0:01:06]} 34. Qd3 {[%emt 0:01:40]} a6 {[%emt 0:01:06]} 35. Bc1 {[%emt 0:01:48]} Rd8 {[%emt 0:00:35]} 36. Rff1 {[%emt 0:00:37]} Qf8 {[%emt 0:01:18]} 37. Bf3 {[%emt 0:03:05]} Qe8 {[%emt 0:00:40]} 38. Ne2 {[%emt 0:02:38]} b5 {[%emt 0:00:44]} 39. Bxc6 {[%emt 0:01:02]} Qxc6 {[%emt 0:00:01]} 40. Nc3 {[%emt 0:00:09]} bxc4 {[%emt 0:00:36]} 41. Qxc4 {[%emt 0:30:25]} Nf7 {[%emt 0:30:49]} 42. Rd5 {[%emt 0:01:08]} Nh6 {[%emt 0:01:18]} 43. Rfd1 {[%emt 0:00:46]} Red7 {[%emt 0:00:39]} 44. Qe2 {[%emt 0:00:46]} Bf6 {[%emt 0:00:17]} 45. Qc4 {[%emt 0:02:35]} Re8 {[%emt 0:00:28]} 46. R5d3 {[%emt 0:00:26]} Bxc3 {[%emt 0:00:35]} 47. Qxc3+ {[%emt 0:00:06]} Kh7 {[%emt 0:00:05]} 48. Rd5 {[%emt 0:00:21]} Re6 {[%emt 0:00:31]} 49. b3 {[%emt 0:00:31]} Qc8 {[%emt 0:00:40]} 50. Bb2 {[%emt 0:00:32]} Qf8 {[%emt 0:00:29]} 51. Kf1 {[%emt 0:01:12]} Kg6 {[%emt 0:00:04]} 52. R1d3 {[%emt 0:01:05]} Ng8 {[%emt 0:00:26]} 53. Rxc5 {[%emt 0:01:43]} Nf6 {[%emt 0:00:47]} 54. Rc8 {[%emt 0:00:42]} Rd8 {[%emt 0:00:44]} 55. Rc7 {[%emt 0:00:41]} Ne8 {[%emt 0:00:47]} 56. Rc6 {[%emt 0:02:26]} Nf6 {[%emt 0:00:19]} 57. Qd4 {[%emt 0:00:00]} Ne4 {[%emt 0:00:34]} 58. Qd5 {[%emt 0:00:05]} Re7 {[%emt 0:00:35]} 59. Rxa6 {[%emt 0:00:29]} Rc7 {[%emt 0:00:27]} 60. Qe6+ {[%emt 0:00:41]} Kh5 {[%emt 0:00:22]} 61. Rd5 {[%emt 0:00:15]} Rf7 {[%emt 0:00:42]} 62. Qxe4 {[%emt 0:00:10]} 1-0

[Event "LAT-chT Higher League 2019"]
[Site "Riga"]
[Date "2019.10.12"]
[Round "8.6"]
[White "Volodin, Aleksandr"]
[Black "Krustkalns, Kristaps"]
[Result "1-0"]
[ECO "A80"]
[WhiteElo "2491"]
[BlackElo "2190"]
[Annotator "ChessBase"]
[PlyCount "73"]
[EventDate "2019.02.15"]
[EventType "team-tourn"]
[EventCountry "LAT"]
[SourceTitle "playchess.com"]
[Source "ChessBase"]
[SourceQuality "1"]
[TimeControl "40/5400+30:1800+30"]

1. d4 {[%emt 0:00:00]} f5 {[%emt 0:12:08]} 2. Nf3 {[%emt 0:00:00]} Nf6 {[%emt 0:00:08]} 3. b4 {[%emt 0:00:01]} g6 {[%emt 0:00:47]} 4. Bb2 {[%emt 0:00:11]} Bg7 {[%emt 0:00:31]} 5. e3 {[%emt 0:00:04]} d5 {[%emt 0:01:08]} 6. c4 {[%emt 0:00:05]} c6 {[%emt 0:00:16]} 7. Nc3 {[%emt 0:02:08]} O-O {[%emt 0:04:50]} 8. Qb3 {[%emt 0:00:25]} e6 {[%emt 0:01:56]} 9. Be2 {[%emt 0:02:08]} Ne4 {[%emt 0:01:09]} 10. O-O {[%emt 0:06:02]} Nd7 {[%emt 0:02:45]} 11. b5 {[%emt 0:01:44]} Kh8 {[%emt 0:00:47]} 12. Rac1 {[%emt 0:10:07]} g5 {[%emt 0:03:51]} 13. Nxe4 {[%emt 0:03:05]} fxe4 {[%emt 0:00:50]} 14. Ne5 {[%emt 0:00:12]} Nxe5 {[%emt 0:01:56]} 15. dxe5 {[%emt 0:00:18]} Qe8 {[%emt 0:01:03]} 16. Qd1 {[%emt 0:10:22]} Bd7 {[%emt 0:06:47]} 17. Bh5 {[%emt 0:04:07]} Qe7 {[%emt 0:01:05]} 18. Qb3 {[%emt 0:00:19]} Rfc8 {[%emt 0:01:25]} 19. Ba3 {[%emt 0:06:56]} Qd8 {[%emt 0:00:33]} 20. Bd6 {[%emt 0:01:27]} dxc4 {[%emt 0:06:13]} 21. Rxc4 {[%emt 0:02:44]} cxb5 {[%emt 0:03:00]} 22. Rxe4 {[%emt 0:00:40]} Bc6 {[%emt 0:10:44]} 23. Rd4 {[%emt 0:01:09]} Bd5 {[%emt 0:01:16]} 24. Qxb5 {[%emt 0:00:27]} a6 {[%emt 0:00:51]} 25. Qe2 {[%emt 0:06:20]} b5 {[%emt 0:00:50]} 26. Rfd1 {[%emt 0:00:34]} Rc4 {[%emt 0:02:52]} 27. Bf3 {[%emt 0:03:27]} Rxd4 {[%emt 0:01:10]} 28. Rxd4 {[%emt 0:00:37]} Bxf3 {[%emt 0:01:01]} 29. Qxf3 {[%emt 0:00:17]} Rc8 {[%emt 0:00:16]} 30. h4 {[%emt 0:00:51]} gxh4 {[%emt 0:01:02]} 31. Qb7 {[%emt 0:06:46]} Rc1+ {[%emt 0:01:23]} 32. Kh2 {[%emt 0:00:06]} Qc8 {[%emt 0:00:08]} 33. Qe7 {[%emt 0:06:04]} Rc4 {[%emt 0:01:39]} 34. Rd2 {[%emt 0:01:59]} h6 {[%emt 0:00:16]} 35. f4 {[%emt 0:06:09]} Kh7 {[%emt 0:01:01]} 36. Bb4 {[%emt 0:04:01]} Rc7 {[%emt 0:03:29]} 37. Rd8 {[%emt 0:05:05]} 1-0

[Event "LAT-chT Higher League 2019"]
[Site "Riga"]
[Date "2019.10.12"]
[Round "8.7"]
[White "Mikelsons, Mikelis-Emils"]
[Black "Mustaps, Matiss"]
[Result "0-1"]
[ECO "E94"]
[WhiteElo "1810"]
[BlackElo "2366"]
[Annotator "NA"]
[PlyCount "86"]
[EventDate "2019.02.15"]
[EventType "team-tourn"]
[EventCountry "LAT"]
[SourceTitle "playchess.com"]
[Source "ChessBase"]
[SourceQuality "1"]
[TimeControl "40/5400+30:1800+30"]

1. d4 {[%emt 0:00:00]} Nf6 {[%emt 0:00:00]} 2. c4 {[%emt 0:00:00]} g6 {[%emt 0:00:00]} 3. Nc3 {[%emt 0:00:00]} Bg7 {[%emt 0:00:00]} 4. e4 {[%emt 0:00:00]} O-O {[%emt 0:00:00]} 5. Be2 {[%emt 0:00:00]} d6 {[%emt 0:02:41]} 6. Nf3 {[%emt 0:00:46]} Nbd7 {[%emt 0:00:22]} 7. O-O {[%emt 0:02:04]} e5 {[%emt 0:00:03]} 8. Be3 {[%emt 0:02:16]} c6 {[%emt 0:03:58]} 9. h3 {[%emt 0:07:05]} exd4 {[%emt 0:01:43]} 10. Nxd4 {[%emt 0:00:21]} Re8 {[%emt 0:00:05]} 11. Qc2 {[%emt 0:03:40]} Qe7 {[%emt 0:01:54]} 12. Bf3 {[%emt 0:05:17]} Ne5 {[%emt 0:00:19]} 13. Be2 {[%emt 0:03:07]} Ned7 {[%emt 0:00:53]} 14. Bf3 {[%emt 0:03:05]} Nc5 {[%emt 0:00:06]} 15. Rfe1 {[%emt 0:01:58]} a5 {[%emt 0:00:47]} 16. Nb3 {[%emt 0:04:54]} Ne6 {[%emt 0:11:43]} 17. Rad1 {[%emt 0:07:14]} h5 {[%emt 0:03:23]} 18. Qd2 {[%emt 0:05:50]} a4 {[%emt 0:02:11]} 19. Na1 {[%emt 0:01:18]} Nd7 {[%emt 0:02:19]} 20. Nc2 {[%emt 0:07:19]} Qh4 {[%emt 0:05:28]} 21. Qxd6 {[%emt 0:05:50]} a3 {[%emt 0:07:52]} 22. Nxa3 {[%emt 0:02:01]} Ng5 {[%emt 0:10:16]} 23. Bxg5 {[%emt 0:07:21]} Qxg5 {[%emt 0:00:06]} 24. Re3 {[%emt 0:02:24]} Ne5 {[%emt 0:05:06]} 25. Be2 {[%emt 0:01:42]} Bf8 {[%emt 0:00:38]} 26. Qd4 {[%emt 0:04:32]} Bc5 {[%emt 0:00:37]} 27. Qd2 {[%emt 0:06:42]} Bxe3 {[%emt 0:00:28]} 28. Qxe3 {[%emt 0:00:05]} Qxe3 {[%emt 0:00:12]} 29. fxe3 {[%emt 0:00:04]} Be6 {[%emt 0:00:16]} 30. Kf2 {[%emt 0:02:06]} h4 {[%emt 0:01:43]} 31. Ke1 {[%emt 0:01:17]} Kf8 {[%emt 0:00:10]} 32. Rd4 {[%emt 0:01:38]} Ke7 {[%emt 0:00:09]} 33. Kd1 {[%emt 0:00:40]} g5 {[%emt 0:00:59]} 34. Kc1 {[%emt 0:05:33]} g4 {[%emt 0:00:17]} 35. hxg4 {[%emt 0:00:18]} Rg8 {[%emt 0:00:09]} 36. Nc2 {[%emt 0:03:08]} Bxg4 {[%emt 0:00:10]} 37. Bxg4 {[%emt 0:02:21]} Rxg4 {[%emt 0:00:13]} 38. Ne1 {[%emt 0:00:07]} Rag8 {[%emt 0:00:15]} 39. b3 {[%emt 0:00:58]} Rxg2 {[%emt 0:02:49]} 40. Nxg2 {[%emt 0:00:08]} Rxg2 {[%emt 0:00:02]} 41. Rd2 {[%emt 0:32:51]} h3 {[%emt 0:33:44]} 42. Ne2 {[%emt 0:01:01]} Nf3 {[%emt 0:00:46]} 43. Rc2 {[%emt 0:00:33]} h2 {[%emt 0:00:10]} 0-1

[Event "LAT-chT Higher League 2019"]
[Site "Riga"]
[Date "2019.10.12"]
[Round "8.8"]
[White "Lavendelis, Egons"]
[Black "Stasans, Aivars"]
[Result "1-0"]
[ECO "D02"]
[WhiteElo "2273"]
[BlackElo "2100"]
[Annotator "NA"]
[PlyCount "85"]
[EventDate "2019.02.15"]
[EventType "team-tourn"]
[EventCountry "LAT"]
[SourceTitle "playchess.com"]
[Source "ChessBase"]
[SourceQuality "1"]
[TimeControl "40/5400+30:1800+30"]

1. Nf3 {[%emt 0:00:00]} Nf6 {[%emt 0:00:35]} 2. g3 {[%emt 0:00:00]} c5 {[%emt 0:02:08]} 3. Bg2 {[%emt 0:00:01]} Nc6 {[%emt 0:00:06]} 4. d4 {[%emt 0:00:06]} e6 {[%emt 0:03:48]} 5. O-O {[%emt 0:00:22]} d5 {[%emt 0:01:41]} 6. b3 {[%emt 0:03:02]} cxd4 {[%emt 0:05:30]} 7. Nxd4 {[%emt 0:01:08]} Bc5 {[%emt 0:00:09]} 8. Nxc6 {[%emt 0:03:20]} bxc6 {[%emt 0:01:18]} 9. Bb2 {[%emt 0:00:04]} O-O {[%emt 0:00:37]} 10. Nd2 {[%emt 0:05:52]} Ba6 {[%emt 0:07:57]} 11. c4 {[%emt 0:04:55]} Rc8 {[%emt 0:05:58]} 12. Rc1 {[%emt 0:03:19]} Qe7 {[%emt 0:01:08]} 13. a3 {[%emt 0:05:53]} Rfd8 {[%emt 0:05:45]} 14. b4 {[%emt 0:03:56]} Bb6 {[%emt 0:03:34]} 15. Qa4 {[%emt 0:01:36]} Bxc4 {[%emt 0:05:05]} 16. Nxc4 {[%emt 0:00:10]} dxc4 {[%emt 0:00:05]} 17. Rxc4 {[%emt 0:03:16]} Rd2 {[%emt 0:03:17]} 18. Bc3 {[%emt 0:04:33]} Rdd8 {[%emt 0:06:44]} 19. Bxc6 {[%emt 0:08:14]} Nd5 {[%emt 0:02:42]} 20. Bb2 {[%emt 0:02:17]} Qg5 {[%emt 0:08:28]} 21. b5 {[%emt 0:03:47]} Nf6 {[%emt 0:04:04]} 22. Qb3 {[%emt 0:13:52]} e5 {[%emt 0:11:50]} 23. Qf3 {[%emt 0:08:55]} Bd4 {[%emt 0:04:00]} 24. Bxd4 {[%emt 0:05:11]} Rxd4 {[%emt 0:00:44]} 25. Rxd4 {[%emt 0:00:03]} exd4 {[%emt 0:00:00]} 26. Rd1 {[%emt 0:02:19]} Qe5 {[%emt 0:01:48]} 27. Qd3 {[%emt 0:02:52]} h5 {[%emt 0:04:20]} 28. Rd2 {[%emt 0:03:30]} Qc5 {[%emt 0:03:55]} 29. a4 {[%emt 0:02:16]} Rd8 {[%emt 0:00:08]} 30. e3 {[%emt 0:00:45]} Qb4 {[%emt 0:00:08]} 31. exd4 {[%emt 0:00:12]} Qxa4 {[%emt 0:00:16]} 32. d5 {[%emt 0:00:12]} Qb4 {[%emt 0:02:52]} 33. d6 {[%emt 0:01:16]} Qc5 {[%emt 0:00:25]} 34. d7 {[%emt 0:00:50]} Ng4 {[%emt 0:01:53]} 35. Qd4 {[%emt 0:01:22]} Qe7 {[%emt 0:00:47]} 36. Kg2 {[%emt 0:01:12]} Qe1 {[%emt 0:01:01]} 37. h3 {[%emt 0:01:28]} Nf6 {[%emt 0:00:55]} 38. Ra2 {[%emt 0:02:12]} h4 {[%emt 0:02:12]} 39. Qxh4 {[%emt 0:01:19]} a5 {[%emt 0:00:02]} 40. Qd4 {[%emt 0:00:25]} Qe6 {[%emt 0:01:21]} 41. Rxa5 {[%emt 0:30:51]} Kf8 {[%emt 0:30:22]} 42. Ra3 {[%emt 0:00:30]} Nxd7 {[%emt 0:00:40]} 43. Rd3 {[%emt 0:00:13]} 1-0

[Event "LAT-chT Higher League 2019"]
[Site "Riga"]
[Date "2019.10.12"]
[Round "8.9"]
[White "Alainis, Artis"]
[Black "Tronenkovs, Valdis"]
[Result "0-1"]
[ECO "B73"]
[WhiteElo "2025"]
[BlackElo "2267"]
[Annotator "NA"]
[PlyCount "76"]
[EventDate "2019.02.15"]
[EventType "team-tourn"]
[EventCountry "LAT"]
[SourceTitle "playchess.com"]
[Source "ChessBase"]
[SourceQuality "1"]
[TimeControl "40/5400+30:1800+30"]

1. e4 {[%emt 0:00:00]} c5 {[%emt 0:00:00]} 2. Nf3 {[%emt 0:00:00]} Nc6 {[%emt 0:00:00]} 3. d4 {[%emt 0:01:42]} cxd4 {[%emt 0:00:00]} 4. Nxd4 {[%emt 0:00:07]} g6 {[%emt 0:00:20]} 5. Nc3 {[%emt 0:01:44]} Bg7 {[%emt 0:00:24]} 6. Be3 {[%emt 0:01:02]} Nf6 {[%emt 0:01:22]} 7. Be2 {[%emt 0:05:33]} O-O {[%emt 0:00:44]} 8. O-O {[%emt 0:00:15]} d6 {[%emt 0:03:37]} 9. Kh1 {[%emt 0:04:33]} Bd7 {[%emt 0:01:30]} 10. f3 {[%emt 0:01:24]} Rc8 {[%emt 0:04:47]} 11. Qd2 {[%emt 0:03:18]} Re8 {[%emt 0:17:59]} 12. Rfc1 {[%emt 0:01:53]} Qa5 {[%emt 0:11:08]} 13. a3 {[%emt 0:01:54]} Ne5 {[%emt 0:05:38]} 14. Nb3 {[%emt 0:04:50]} Qc7 {[%emt 0:04:09]} 15. Nb5 {[%emt 0:10:13]} Bxb5 {[%emt 0:00:42]} 16. Bxb5 {[%emt 0:00:17]} Red8 {[%emt 0:01:35]} 17. Bd4 {[%emt 0:13:41]} d5 {[%emt 0:15:38]} 18. exd5 {[%emt 0:06:59]} a6 {[%emt 0:00:12]} 19. Bf1 {[%emt 0:03:23]} Nc4 {[%emt 0:08:09]} 20. Qf2 {[%emt 0:02:31]} Rxd5 {[%emt 0:02:27]} 21. Re1 {[%emt 0:01:59]} b5 {[%emt 0:04:09]} 22. c3 {[%emt 0:09:14]} e5 {[%emt 0:02:36]} 23. Ba7 {[%emt 0:03:03]} Nxb2 {[%emt 0:05:24]} 24. Qxb2 {[%emt 0:03:56]} Qxa7 {[%emt 0:00:05]} 25. a4 {[%emt 0:00:08]} Qc7 {[%emt 0:01:45]} 26. axb5 {[%emt 0:01:17]} axb5 {[%emt 0:00:03]} 27. Rec1 {[%emt 0:01:48]} e4 {[%emt 0:01:51]} 28. Qf2 {[%emt 0:02:32]} exf3 {[%emt 0:01:16]} 29. Qxf3 {[%emt 0:00:27]} Rf5 {[%emt 0:00:38]} 30. Qe2 {[%emt 0:00:45]} Re8 {[%emt 0:00:31]} 31. Qd1 {[%emt 0:07:49]} Ne4 {[%emt 0:00:28]} 32. Ra2 {[%emt 0:03:00]} Qb6 {[%emt 0:04:10]} 33. Nd4 {[%emt 0:01:10]} Nf2+ {[%emt 0:00:27]} 34. Rxf2 {[%emt 0:00:17]} Rxf2 {[%emt 0:00:01]} 35. Nxb5 {[%emt 0:00:49]} Qe3 {[%emt 0:02:02]} 36. c4 {[%emt 0:01:52]} Rd2 {[%emt 0:00:14]} 37. Qg4 {[%emt 0:00:57]} h5 {[%emt 0:00:38]} 38. Qh4 {[%emt 0:00:19]} Rxg2 {[%emt 0:00:59]} 0-1

[Event "LAT-chT Higher League 2019"]
[Site "Riga"]
[Date "2019.10.12"]
[Round "8.10"]
[White "Rogule, Laura"]
[Black "Vidruska, Renate"]
[Result "1-0"]
[ECO "D32"]
[WhiteElo "2269"]
[BlackElo "2038"]
[Annotator "NA"]
[PlyCount "97"]
[EventDate "2019.02.15"]
[EventType "team-tourn"]
[EventCountry "LAT"]
[SourceTitle "playchess.com"]
[Source "ChessBase"]
[SourceQuality "1"]
[TimeControl "40/5400+30:1800+30"]

1. c4 {[%emt 0:00:00]} Nf6 {[%emt 0:04:55]} 2. Nf3 {[%emt 0:00:43]} e6 {[%emt 0:00:14]} 3. b3 {[%emt 0:01:28]} Be7 {[%emt 0:02:24]} 4. Bb2 {[%emt 0:00:38]} d5 {[%emt 0:00:31]} 5. e3 {[%emt 0:01:22]} O-O {[%emt 0:00:20]} 6. Nc3 {[%emt 0:03:48]} c5 {[%emt 0:02:25]} 7. cxd5 {[%emt 0:03:41]} exd5 {[%emt 0:03:29]} 8. d4 {[%emt 0:00:37]} Nc6 {[%emt 0:02:57]} 9. Be2 {[%emt 0:00:43]} Be6 {[%emt 0:06:16]} 10. dxc5 {[%emt 0:03:02]} Bxc5 {[%emt 0:00:19]} 11. O-O {[%emt 0:00:29]} Ne4 {[%emt 0:04:35]} 12. Nb5 {[%emt 0:06:45]} Be7 {[%emt 0:15:32]} 13. Nbd4 {[%emt 0:03:32]} Bg4 {[%emt 0:02:06]} 14. Nxc6 {[%emt 0:03:28]} bxc6 {[%emt 0:00:08]} 15. Ne5 {[%emt 0:02:11]} Bxe2 {[%emt 0:00:51]} 16. Qxe2 {[%emt 0:00:04]} Rc8 {[%emt 0:05:17]} 17. Rac1 {[%emt 0:03:39]} c5 {[%emt 0:05:57]} 18. Rfd1 {[%emt 0:03:00]} Nf6 {[%emt 0:00:25]} 19. Ng4 {[%emt 0:08:38]} Ne4 {[%emt 0:04:22]} 20. f3 {[%emt 0:05:07]} Ng5 {[%emt 0:00:19]} 21. Qd3 {[%emt 0:07:50]} Rc6 {[%emt 0:10:02]} 22. Qf5 {[%emt 0:01:46]} Qa5 {[%emt 0:09:35]} 23. Qxd5 {[%emt 0:13:29]} Re6 {[%emt 0:00:25]} 24. a3 {[%emt 0:06:33]} h5 {[%emt 0:06:38]} 25. Ne5 {[%emt 0:00:52]} Rd8 {[%emt 0:00:24]} 26. Qc4 {[%emt 0:02:37]} Rxd1+ {[%emt 0:01:03]} 27. Rxd1 {[%emt 0:00:03]} Bf6 {[%emt 0:00:15]} 28. f4 {[%emt 0:01:09]} Nh7 {[%emt 0:04:43]} 29. Kf2 {[%emt 0:00:36]} Nf8 {[%emt 0:01:10]} 30. Bc3 {[%emt 0:03:25]} Qb6 {[%emt 0:01:00]} 31. Rd5 {[%emt 0:00:52]} Qa6 {[%emt 0:01:51]} 32. Qxc5 {[%emt 0:03:34]} Bxe5 {[%emt 0:00:09]} 33. Bxe5 {[%emt 0:00:21]} Rc6 {[%emt 0:00:08]} 34. Rd6 {[%emt 0:00:31]} Rxd6 {[%emt 0:00:57]} 35. Qxd6 {[%emt 0:01:47]} Qb5 {[%emt 0:00:58]} 36. b4 {[%emt 0:02:12]} f6 {[%emt 0:00:39]} 37. Bb2 {[%emt 0:01:06]} Qc4 {[%emt 0:00:29]} 38. Qd1 {[%emt 0:00:45]} h4 {[%emt 0:00:47]} 39. Kf3 {[%emt 0:00:41]} Ne6 {[%emt 0:01:33]} 40. Kg4 {[%emt 0:02:47]} Qe4 {[%emt 0:00:31]} 41. Qf3 {[%emt 0:30:28]} Qg6+ {[%emt 0:32:58]} 42. Kxh4 {[%emt 0:00:21]} Qc2 {[%emt 0:00:27]} 43. Qd5 {[%emt 0:01:45]} g5+ {[%emt 0:00:24]} 44. fxg5 {[%emt 0:01:08]} fxg5+ {[%emt 0:00:02]} 45. Kg4 {[%emt 0:00:30]} Qc8 {[%emt 0:01:17]} 46. Kf5 {[%emt 0:00:35]} Kf7 {[%emt 0:00:01]} 47. e4 {[%emt 0:00:16]} Ke7 {[%emt 0:00:11]} 48. Bf6+ {[%emt 0:00:09]} Kf7 {[%emt 0:00:03]} 49. Bxg5 {[%emt 0:00:22]} 1-0